lending/lending_fUSD_20260317
["ID","MTS","AMOUNT","RATE_DAILY","PERIOD"]
[408512559,1773784235942,-500.0,0.00017999,2]
[408512560,1773784235952,-500.0,0.00017999,2]
[408512561,1773784235962,-500.0,0.00017999,2]
[408512562,1773784235973,-500.0,0.00017999,2]
[408512563,1773784235983,-500.0,0.00017999,2]
[408512564,1773784235993,-500.0,0.00017999,2]
[408512565,1773784236003,-524.21910232,0.00017999,2]
[408512566,1773784236013,-300.0,0.00017999,2]
[408512567,1773784236023,-666.0,0.00017999,2]
[408512568,1773784236033,-315.1097082,0.00017999,2]
[408512569,1773784236043,-256.32956829,0.00017999,2]
[408512570,1773784236053,-500.0,0.00017999,2]
[408512571,1773784236064,-500.0,0.00017999,2]
[408512572,1773784236075,-365.79222297,0.00017999,2]
[408512573,1773784236085,-3165.0,0.00018,5]
[408512574,1773784236095,-117391.84077818,0.00018,2]
[408512575,1773784236107,-765.5077029,0.00018,2]
[408512576,1773784236121,-68598.15409254,0.00018,2]
[408512577,1773784236132,-834.3403945,0.00018,2]
[408512578,1773784238048,-1376.29277323,0.00016271,2]
[408512579,1773784238059,-1376.29277323,0.00016814,2]
[408512580,1773784238070,-54846.88669966,0.00018,2]
[408512581,1773784238085,-53999.22826459,0.00018,2]
[408512582,1773784238097,-44935.13108201,0.00018,2]
[408512583,1773784238110,-24389.24633256,0.00018,2]
[408512584,1773784238164,-3239.94984,0.00018,2]
[408512585,1773784238176,-1553.52,0.00018,2]
[408512586,1773784238187,-74596.30322681,0.00018,2]
[408512587,1773784238198,-1159.41324796,0.00018,2]
[408512693,1773784240369,-251733.72278766,0.00018,2]
[408512694,1773784240430,-451.97293042,0.00018,2]
[408512695,1773784240441,-4756.99305219,0.00018,2]
[408512696,1773784240661,-697.19801247,0.00018,2]
[408512697,1773784240676,-2976.22637227,0.00018,2]
[408512707,1773784243206,-1376.29277323,0.00017357,2]
[408512708,1773784243216,-6004.0,0.00017487,2]
[408512709,1773784243226,-250.0,0.00017808,2]
[408512710,1773784243235,-11278.38237224,0.00018,2]
[408512716,1773784245991,-646.0500007,0.000141,2]
[408512717,1773784246448,-1853.9499993,0.000141,2]
[408512718,1773784246469,-146.0500007,0.00018,2]
[408512721,1773784610577,50000.0,0.00032876,120]
[408512722,1773784623004,60000.0,0.00032876,120]
[408512724,1773784890261,4546.89135113,0.0003287,120]
[408512725,1773785365213,2000.0,0.00032877,120]
[408512727,1773785432173,-5359.05137063,0.0001199,2]
[408512729,1773785432184,-195.17591372,0.00012829,2]
[408512731,1773785432195,-166.66,0.00012929,2]
[408512733,1773785432204,-166.66,0.00013201,2]
[408512734,1773785432218,-162.48,0.00013326,2]
[408512735,1773785432228,-195.1759137,0.00013414,2]
[408512736,1773785432238,-186.0,0.00013428,2]
[408512737,1773785432248,-300.0,0.00013428,2]
[408512738,1773785432258,-1200.0,0.00013428,2]
[408512739,1773785432268,-166.66,0.00013473,2]
[408512740,1773785432277,-1531.55559763,0.00013529,2]
[408512741,1773785432287,-166.66,0.00013745,2]
[408512742,1773785432297,-195.1759137,0.00013998,2]
[408512743,1773785432308,-2245.0031,0.00013999,2]
[408512744,1773785432318,-2150.03444388,0.00013999,2]
[408512745,1773785432330,-349.96555612,0.00013999,2]
[408512746,1773785432340,-1420.03444388,0.00013999,2]
[408512747,1773785432351,-981.47839901,0.00013999,2]
[408512748,1773785432363,-275.31112814,0.00013999,2]
[408512749,1773785432375,-348.84359164,0.00013999,2]
[408512750,1773785432386,-10939.85121338,0.00013999,2]
[408512751,1773785432401,-30461.83282395,0.00013999,2]
[408512752,1773785432411,-272.49763865,0.00014,2]
[408512754,1773785432421,-2959.79189001,0.00014,2]
[408512756,1773785432431,-166.66,0.00014018,2]
[408512758,1773785432441,-700.62114221,0.0001405,2]
[408512759,1773785432452,-150.0,0.00014058,2]
[408512761,1773785432461,-1000.0,0.00014059,2]
[408512764,1773785432471,-16453.65,0.0001406,2]
[408512766,1773785432481,-500.0,0.00014073,2]
[408512768,1773785432491,-500.0,0.00014073,2]
[408512771,1773785432500,-500.0,0.00014073,2]
[408512774,1773785432510,-500.0,0.00014073,2]
[408512777,1773785432520,-500.0,0.00014073,2]
[408512780,1773785432529,-500.0,0.00014073,2]
[408512782,1773785432539,-500.0,0.00014073,2]
[408512784,1773785432549,-563.53705783,0.00014098,2]
[408512786,1773785432558,-500.0,0.00014098,2]
[408512788,1773785432568,-278.0899208,0.00014098,2]
[408512790,1773785432581,-500.0,0.00014098,2]
[408512792,1773785432591,-500.0,0.00014098,2]
[408512795,1773785432600,-500.0,0.00014098,2]
[408512797,1773785432610,-253.35674002,0.00014098,2]
[408512799,1773785432619,-157.91060321,0.00014098,2]
[408512801,1773785432629,-571.30049213,0.00014098,2]
[408512803,1773785432638,-500.0,0.00014098,2]
[408512805,1773785432647,-500.0,0.00014098,2]
[408512807,1773785432657,-331904.28989511,0.00014099,2]
[408512809,1773785432673,-523.48447467,0.00014099,2]
[408512812,1773785432684,-89758.75673022,0.00014099,2]
[408512814,1773785432694,-1000.0,0.000141,2]
[408512815,1773785432703,-657.5523732,0.000141,2]
[408512816,1773785432718,-1717.03856977,0.000141,2]
[408512843,1773785438205,-9891.57037895,0.000141,2]
[408512844,1773785438219,-1389.5563097,0.000141,2]
[408512845,1773785438232,-519.57820263,0.000141,2]
[408512846,1773785438243,-713.71647197,0.000141,2]
[408512847,1773785438256,-543.27806099,0.000141,2]
[408512848,1773785438272,-3999.99999999,0.000141,2]
[408512849,1773785438284,-422.55999998,0.000141,2]
[408512850,1773785438296,-5730.53953282,0.000141,2]
[408512851,1773785438307,-500.0,0.00014199,2]
[408512852,1773785438317,-500.0,0.00014199,2]
[408512853,1773785438328,-500.0,0.00014199,2]
[408512854,1773785438338,-500.0,0.00014199,2]
[408512855,1773785438348,-500.0,0.00014199,2]
[408512856,1773785438358,-500.0,0.00014199,2]
[408512857,1773785438368,-500.0,0.00014247,2]
[408512858,1773785438378,-166.66,0.0001429,2]
[408512859,1773785438388,-150.0,0.00014356,2]
[408512860,1773785438398,-2959.79188995,0.00014433,2]
[408512861,1773785438411,-1034.31030898,0.00014452,2]
[408512862,1773785438421,-272.49763858,0.00014557,2]
[408512863,1773785438431,-420.0,0.0001472,2]
[408512864,1773785438442,-1120.0,0.00014771,2]
[408512865,1773785438454,-2959.79188995,0.00014867,2]
[408512867,1773785438465,-250.0,0.00015,2]
[408512869,1773785438476,-1746.40873972,0.00015037,2]
[408512871,1773785438493,-182.48126028,0.00015037,2]
[408512873,1773785438503,-272.49763858,0.00015114,2]
[408512876,1773785438513,-1800.48,0.00015507,2]
[408512878,1773785438523,-162.48,0.00015547,2]
[408512880,1773785438534,-272.49763858,0.00015671,2]
[408512881,1773785438545,-2000.0,0.0001589,2]
[408512882,1773785438556,-1800.48,0.00015895,2]
[408512883,1773785438566,-929.37600956,0.0001595,2]
[408512884,1773785438577,-465.56,0.00016047,2]
[408512885,1773785438588,-587.0,0.00016136,2]
[408512886,1773785438598,-1852.42,0.00016214,2]
[408512887,1773785438608,-272.49763858,0.00016229,2]
[408512888,1773785438618,-1800.48,0.00016282,2]
[408512889,1773785438628,-1400.0,0.00016356,2]
[408512891,1773785438638,-1100.0,0.00016356,2]
[408512892,1773785438648,-500.0,0.00016356,2]
[408512893,1773785438659,-151.0,0.0001655,2]
[408512894,1773785438669,-156.587,0.0001655,2]
[408512895,1773785438679,-193.9920317,0.0001655,2]
[408512896,1773785438689,-200.0,0.00016604,2]
[408512897,1773785438699,-1800.48,0.0001667,2]
[408512898,1773785438708,-600.0,0.00016679,2]
[408512899,1773785438718,-272.49763858,0.00016786,2]
[408512900,1773785438728,-200.0,0.000169,6]
[408512901,1773785438738,-5000.0,0.000169,2]
[408512902,1773785438748,-154.02377296,0.00016935,2]
[408512903,1773785438758,-150.5387633,0.00016973,2]
[408512904,1773785438768,-500.0,0.00016973,2]
[408512905,1773785438778,-500.0,0.00016999,2]
[408512906,1773785438788,-500.0,0.00016999,2]
[408512907,1773785438798,-456.05455608,0.00016999,2]
[408512908,1773785438808,-220.57679574,0.00016999,2]
[408512909,1773785438818,-500.0,0.00016999,2]
[408512910,1773785438827,-534.69470427,0.00016999,2]
[408512911,1773785438837,-179.4306978,0.00016999,2]
[408512912,1773785438847,-167894.18859807,0.00017,2]
[408512913,1773785438857,-24039.73603744,0.00017,2]
[408512914,1773785438867,-300.0,0.00017,2]
[408512915,1773785438877,-500.0,0.00017053,2]
[408512916,1773785438887,-1800.48,0.00017058,2]
[408512917,1773785438896,-37795.44458039,0.000171,2]
[408512918,1773785438906,-400.0,0.000173,6]
[408512919,1773785438916,-272.49763858,0.00017343,2]
[408512920,1773785438926,-350.0,0.00017355,2]
[408512921,1773785438935,-1851.0,0.00017366,2]
[408512922,1773785438945,-1851.0,0.00017367,2]
[408512923,1773785438955,-191.52650673,0.00017387,2]
[408512924,1773785438964,-600.0,0.000174,6]
[408512925,1773785438974,-150.0,0.00017452,2]
[408512926,1773785438984,-150.0,0.00017452,2]
[408512927,1773785438995,-1851.0,0.00017469,2]
[408512928,1773785439004,-150.0,0.00017487,2]
[408512929,1773785439014,-1344.0,0.00017487,2]
[408512930,1773785439023,-3511.0,0.00017487,2]
[408512931,1773785439033,-1044.0,0.00017487,2]
[408512932,1773785439043,-1260.0,0.00017487,2]
[408512933,1773785439053,-1214.0,0.00017487,2]
[408512934,1773785439062,-923.0,0.00017487,2]
[408512935,1773785439072,-2465.0,0.00017487,2]
[408512936,1773785439081,-6004.0,0.00017487,2]
[408512937,1773785439091,-500.0,0.00017495,2]
[408512938,1773785439101,-800.0,0.000175,6]
[408512939,1773785439111,-1000.0,0.00017521,2]
[408512940,1773785439120,-1851.0,0.00017543,2]
[408512941,1773785439130,-1924.123,0.000176,2]
[408512942,1773785439140,-165.118,0.000176,2]
[408512943,1773785439150,-1000.0,0.000176,6]
[408512944,1773785439160,-1369.68,0.000176,2]
[408512945,1773785439170,-204.135699,0.00017616,7]
[408512946,1773785439179,-290.014586,0.00017616,7]
[408512947,1773785439189,-500.0,0.00017622,2]
[408512948,1773785439199,-207.479444,0.0001764,7]
[408512949,1773785439208,-222.559907,0.0001764,7]
[408512950,1773785439217,-292.261635,0.0001764,7]
[408512951,1773785439227,-220.382255,0.0001764,7]
[408512952,1773785439236,-284.669652,0.0001764,7]
[408512953,1773785439246,-299.456198,0.0001764,7]
[408512954,1773785439256,-823.0,0.00017688,2]
[408512955,1773785439265,-200.0,0.000177,6]
[408512956,1773785439278,-500.0,0.00017707,2]
[408512957,1773785439288,-1100.0,0.00017726,7]
[408512958,1773785439297,-1400.0,0.00017726,7]
[408512959,1773785439307,-500.0,0.00017726,7]
[408512960,1773785439318,-500.0,0.00017748,2]
[408512961,1773785439327,-1851.0,0.00017749,2]
[408512962,1773785439337,-162.48,0.00017768,2]
[408512963,1773785439346,-168.0,0.00017779,2]
[408512964,1773785439356,-200.0,0.000178,6]
[408512965,1773785439366,-250.0,0.00017808,2]
[408512966,1773785439376,-500.0,0.00017899,2]
[408512967,1773785439386,-500.0,0.00017899,2]
[408512968,1773785439396,-150.0,0.000179,7]
[408512969,1773785439410,-3160.7594,0.000179,2]
[408512970,1773785439420,-200.0,0.000179,6]
[408512971,1773785439430,-191.52650673,0.000179,2]
[408512972,1773785439440,-272.49763858,0.000179,2]
[408512973,1773785439451,-1597.65397663,0.000179,2]
[408512974,1773785439467,-306.33016799,0.000179,2]
[408512975,1773785439476,-28.28483201,0.000179,2]
[408512976,1773785440535,-2959.79188995,0.000153,2]
[408512977,1773785440545,-370.11913477,0.000179,2]
[408512978,1773785440555,-235.27545522,0.000179,2]
[408512979,1773785440676,-81.19919634,0.000179,2]
[408512980,1773785440685,-2029.0,0.00017976,5]
[408512981,1773785440695,-656.21901654,0.00017976,2]
[408512983,1773785440949,-726.60603903,0.00017487,2]
[408512984,1773785440961,-2238.28,0.00017487,2]
[408512985,1773785440973,-380.30947352,0.00017487,2]
[408512992,1773785443316,-410.80448745,0.00017487,2]
[408512993,1773785443326,-37396.40061296,0.00017976,2]
[408512994,1773785443337,-2911.6513957,0.00017976,2]
[408512995,1773785443346,-29315.7593658,0.00017976,2]
[408512996,1773785443355,-234.0,0.00017994,2]
[408512997,1773785443365,-155.0,0.00017999,2]
[408512998,1773785443375,-300.0,0.00017999,2]
[408512999,1773785443384,-2538.0,0.00018,5]
[408513000,1773785443394,-805219.56706215,0.00018,2]
[408513001,1773785443410,-6364.08690339,0.00018,2]
[408513002,1773785443429,-290.0,0.00018,2]
[408513003,1773785443489,-45129.84764226,0.00018,2]
[408513010,1773785446084,-2959.79188995,0.00015733,2]
[408513011,1773785446094,-6848.37457876,0.00018,2]
[408513012,1773785446110,-4901.64377145,0.00018,2]
[408513013,1773785446149,-800.0,0.00018,2]
[408513014,1773785446428,-2357.70276646,0.00018,2]
[408513017,1773785601147,2000.0,0.00032877,120]
[408513018,1773785628308,2000.0,0.00032877,120]
[408513019,1773785664096,2000.0,0.00032877,120]
[408513020,1773785676293,2000.0,0.00032877,120]
[408513041,1773785699560,2000.0,0.00032877,120]
[408513042,1773785725266,2000.0,0.00032877,120]
[408513043,1773785760548,3200.0,0.00032877,120]
[408513045,1773786058898,3000.0,0.0003287,120]
[408513046,1773786165078,2000.0,0.00032877,120]
[408513047,1773786167122,4369.58392119,0.00032876,120]
[408513048,1773786178190,2000.0,0.00032877,120]
[408513049,1773786188308,2000.0,0.00032877,120]
[408513050,1773786194005,385.0,0.0003287,120]
[408513051,1773786202610,2000.0,0.00032877,120]
[408513052,1773786229006,2000.0,0.00032877,120]
[408513053,1773786242568,2000.0,0.00032877,120]
[408513054,1773786257346,2000.0,0.00032877,120]
[408513055,1773786528602,163.96,7.429e-05,2]
[408513056,1773786528812,163.96,7.82e-05,2]
[408513057,1773786529662,163.96,8.211e-05,2]
[408513058,1773786529723,163.96,8.602e-05,2]
[408513059,1773786529946,163.96,8.993e-05,2]
[408513060,1773786530157,163.96,9.384e-05,2]
[408513061,1773786542910,159.0,7.887e-05,2]
[408513062,1773786543179,159.0,8.887e-05,2]
[408513063,1773786627607,150.0,7.887e-05,2]
[408513064,1773786627867,150.0,8.887e-05,2]
[408513071,1773786631416,-163.96,9.775e-05,2]
[408513072,1773786631427,-95.22178507,9.887e-05,2]
[408513073,1773786631441,-54.77821493,9.887e-05,2]
[408513074,1773786631451,-163.96,0.00010166,2]
[408513075,1773786631461,-163.96,0.00010557,2]
[408513076,1773786631472,-150.0,0.00010887,2]
[408513077,1773786631483,-163.96,0.00010948,2]
[408513078,1773786631495,-163.96,0.00011339,2]
[408513079,1773786631505,-27.15348566,0.0001173,2]
[408513080,1773786631519,-136.80651434,0.0001173,2]
[408513081,1773786631529,-163.96,0.00012121,2]
[408513082,1773786631539,-163.96,0.00012512,2]
[408513083,1773786631550,-163.96,0.00012903,2]
[408513084,1773786631560,-67.24035843,0.00013294,2]
[408513085,1773786631572,-96.71964157,0.00013294,2]
[408513086,1773786631581,-163.96,0.00013685,2]
[408513087,1773786631591,-415.92383357,0.00013697,2]
[408513089,1773786631603,-784.07616643,0.00013697,2]
[408513091,1773786631613,-300.0,0.00013697,2]
[408513093,1773786631622,-8642.32564634,0.00013698,2]
[408513095,1773786631632,-376.0,0.00013797,2]
[408513097,1773786631642,-150.0,0.00013798,2]
[408513100,1773786631656,-73467.8214,0.00013799,2]
[408513101,1773786631667,-15197.726,0.00013799,2]
[408513103,1773786631677,-500.0,0.00013873,2]
[408513105,1773786631687,-7671.75669675,0.00013898,2]
[408513107,1773786631697,-137924.3692,0.00013899,2]
[408513109,1773786631707,-212.1281,0.00013998,2]
[408513111,1773786631717,-1000.0,0.00013999,2]
[408513114,1773786631727,-163.96,0.00014076,2]
[408513116,1773786631738,-500.0,0.00014098,2]
[408513118,1773786631747,-500.0,0.00014098,2]
[408513120,1773786631757,-500.0,0.00014098,2]
[408513122,1773786631768,-500.0,0.00014098,2]
[408513124,1773786631778,-500.0,0.00014098,2]
[408513126,1773786631788,-500.0,0.00014099,2]
[408513127,1773786631798,-7671.75669671,0.00014343,2]
[408513128,1773786631808,-163.96,0.00014467,2]
[408513129,1773786631819,-1112.2956,0.00014504,2]
[408513130,1773786631831,-163.96,0.00014857,2]
[408513131,1773786631841,-255.0,0.00014916,2]
[408513132,1773786631851,-2851.28,0.00014933,2]
[408513133,1773786631862,-420.0,0.0001501,2]
[408513134,1773786631873,-1680.0,0.00015067,2]
[408513135,1773786631883,-500.0,0.00015601,2]
[408513136,1773786631894,-500.0,0.00015646,2]
[408513137,1773786631905,-500.0,0.0001584,2]
[408513138,1773786631916,-2000.0,0.00015928,2]
[408513139,1773786631927,-200.0,0.00015931,2]
[408513140,1773786631937,-3188.81,0.00015938,2]
[408513141,1773786631947,-929.37600956,0.00015964,2]
[408513142,1773786631956,-542.71,0.00015972,2]
[408513143,1773786631967,-500.0,0.00016,2]
[408513144,1773786631977,-500.0,0.00016,2]
[408513145,1773786631988,-500.0,0.00016,2]
[408513146,1773786631998,-500.0,0.00016184,2]
[408513147,1773786632008,-664.61455226,0.00016214,2]
[408513148,1773786632022,-500.0,0.0001635,2]
[408513149,1773786632033,-500.0,0.00016356,2]
[408513150,1773786632043,-1000.0,0.00016356,2]
[408513151,1773786632052,-1400.0,0.00016356,2]
[408513152,1773786632063,-500.0,0.00016397,2]
[408513153,1773786632073,-587.0,0.0001645,2]
[408513154,1773786632083,-1123.0,0.00016573,2]
[408513155,1773786632093,-600.0,0.000166,2]
[408513156,1773786632103,-166.66,0.00016815,2]
[408513157,1773786632114,-8073.64274631,0.00016822,2]
[408513158,1773786632124,-500.0,0.00016899,2]
[408513159,1773786632135,-194.81741556,0.00016921,2]
[408513160,1773786632145,-150.99,0.00016922,2]
[408513161,1773786632155,-5303.0,0.00016922,2]
[408513162,1773786632165,-7592.91,0.00016922,2]
[408513163,1773786632176,-3848.03,0.00016922,2]
[408513164,1773786632186,-4999.99,0.00016922,2]
[408513165,1773786632196,-150.99,0.00016922,2]
[408513166,1773786632372,-72882.09832392,0.00016922,2]
[408513167,1773786632426,-9413.43167608,0.00016922,2]
[408513168,1773786632436,-9999.99,0.00016922,2]
[408513169,1773786632446,-999.99,0.00016922,2]
[408513170,1773786632460,-340.62,0.00016922,2]
[408513171,1773786632470,-9999.99,0.00016922,2]
[408513172,1773786632480,-299.99,0.00016922,4]
[408513173,1773786632489,-9999.99,0.00016922,2]
[408513174,1773786632499,-8073.64274623,0.00016942,2]
[408513175,1773786632508,-154.02377296,0.0001697,2]
[408513176,1773786632517,-502.95396938,0.00016973,2]
[408513177,1773786632527,-500.0,0.00016973,2]
[408513178,1773786632537,-502.15971815,0.00016973,2]
[408513179,1773786632546,-550.0891429,0.00016973,2]
[408513180,1773786632558,-264.0,0.00016996,2]
[408513181,1773786632567,-5303.60946006,0.00017062,2]
[408513182,1773786632580,-2770.03328617,0.00017062,2]
[408513183,1773786632589,-2500.0,0.00017074,2]
[408513184,1773786632599,-150.0,0.00017169,2]
[408513185,1773786632609,-8073.64274623,0.00017181,2]
[408513186,1773786632620,-8073.64274623,0.00017301,2]
[408513187,1773786632630,-1538.0,0.0001736,2]
[408513188,1773786632640,-500.0,0.00017388,2]
[408513189,1773786632650,-8073.64274623,0.00017421,2]
[408513190,1773786632659,-150.0,0.00017452,2]
[408513191,1773786632669,-1260.0,0.00017487,2]
[408513192,1773786632679,-923.0,0.00017487,2]
[408513193,1773786632688,-1214.0,0.00017487,2]
[408513194,1773786632698,-620.0,0.00017487,2]
[408513195,1773786632712,-1344.0,0.00017487,2]
[408513196,1773786632722,-500.0,0.00017509,2]
[408513197,1773786632731,-8073.64274623,0.00017541,2]
[408513198,1773786632741,-1539.298,0.000176,2]
[408513199,1773786632750,-210.872527,0.0001764,7]
[408513200,1773786632760,-226.738678,0.0001764,7]
[408513201,1773786632769,-193.631459,0.0001764,7]
[408513202,1773786632779,-184.742262,0.0001764,7]
[408513203,1773786632788,-203.271832,0.0001764,7]
[408513204,1773786632797,-256.576017,0.0001764,7]
[408513205,1773786632807,-8073.64274623,0.0001766,2]
[408513206,1773786632817,-504.0518316,0.00017671,2]
[408513207,1773786632829,-1538.0,0.0001768,2]
[408513208,1773786632839,-500.0,0.00017686,2]
[408513209,1773786632848,-500.0,0.00017717,2]
[408513210,1773786632858,-151.0,0.00017723,2]
[408513211,1773786632869,-500.0,0.00017726,7]
[408513212,1773786632879,-1000.0,0.00017726,7]
[408513213,1773786632889,-1400.0,0.00017726,7]
[408513214,1773786632902,-500.0,0.00017727,2]
[408513215,1773786632911,-500.0,0.00017727,2]
[408513216,1773786632922,-500.0,0.00017727,2]
[408513217,1773786632932,-500.0,0.00017727,2]
[408513218,1773786632941,-500.0,0.00017727,2]
[408513219,1773786632951,-500.0,0.00017727,2]
[408513220,1773786632977,-500.0,0.00017727,2]
[408513221,1773786632990,-8073.64274623,0.0001778,2]
[408513222,1773786633002,-1942.0,0.00017792,2]
[408513223,1773786633013,-500.0,0.00017801,2]
[408513224,1773786633025,-250.0,0.00017808,2]
[408513225,1773786633036,-150.0,0.000179,7]
[408513226,1773786633047,-5000.0,0.000179,2]
[408513227,1773786633057,-193.23518954,0.000179,2]
[408513228,1773786633068,-190.21744314,0.000179,2]
[408513229,1773786633078,-1124.84179222,0.000179,2]
[408513230,1773786633090,-7175.74677497,0.000179,2]
[408513231,1773786633105,-2978.34361141,0.000179,2]
[408513232,1773786633116,-183.55468146,0.000179,2]
[408513233,1773786633126,-8073.64274623,0.000179,2]
[408513234,1773786633136,-2000.0,0.00017919,2]
[408513235,1773786633147,-500.0,0.00017973,2]
[408513236,1773786633157,-500.0,0.00017973,2]
[408513237,1773786633167,-500.92517317,0.00017973,2]
[408513238,1773786633178,-500.0,0.00017973,2]
[408513239,1773786633188,-297.01217445,0.00017973,2]
[408513240,1773786633198,-500.0,0.00017973,2]
[408513241,1773786633209,-500.0,0.00017977,2]
[408513242,1773786633220,-500.0,0.00017977,2]
[408513243,1773786633231,-292.78781534,0.00017977,2]
[408513244,1773786633241,-3477.49342,0.00017978,2]
[408513245,1773786633251,-5985.3046673,0.00017978,2]
[408513246,1773786633261,-65067.49963023,0.00017978,2]
[408513248,1773786637386,-5374.16711633,0.00014787,2]
[408513249,1773786637557,-2297.58958038,0.00014787,2]
[408513250,1773786637567,-7671.75669671,0.00015232,2]
[408513251,1773786637578,-2477.44502617,0.00017978,2]
[408513252,1773786637587,-21475.41572122,0.00017978,2]
[408513253,1773786637599,-1832.1490448,0.00017978,2]
[408513254,1773786637610,-3834.35915411,0.00017978,2]
[408513355,1773786642589,-1502.89867055,0.00015677,2]
[408513356,1773786642602,-6168.85802616,0.00015677,2]
[408513357,1773786642612,-5645.32236292,0.00017485,2]
[408513358,1773786642623,-358.67763708,0.00017485,2]
[408513359,1773786642633,-242.54134826,0.000179,2]
[408513364,1773786645735,-500.0,0.00014432,2]
[408513365,1773786645745,-4757.45865174,0.000179,2]
[408513366,1773786645755,-82713.86305757,0.00017978,2]
[408513367,1773786645764,-8158.5944903,0.00017978,2]
[408513368,1773786645775,-6285.3857413,0.00017978,2]
[408513369,1773786645784,-228.18034199,0.0001799,2]
[408513370,1773786645794,-151.0,0.00017997,2]
[408513371,1773786645804,-151.0,0.00017997,2]
[408513372,1773786645813,-500.0,0.00017999,2]
[408513373,1773786645827,-500.0,0.00017999,2]
[408513374,1773786645837,-500.0,0.00017999,2]
[408513375,1773786645847,-500.0,0.00017999,2]
[408513377,1773786645857,-500.0,0.00017999,2]
[408513379,1773786645868,-500.0,0.00017999,2]
[408513381,1773786645881,-500.0,0.00017999,2]
[408513383,1773786645891,-500.0,0.00017999,2]
[408513384,1773786645900,-500.0,0.00017999,2]
[408513385,1773786645910,-500.0,0.00017999,2]
[408513386,1773786645919,-500.0,0.00017999,2]
[408513387,1773786645929,-500.0,0.00017999,2]
[408513388,1773786645938,-500.0,0.00017999,2]
[408513389,1773786645947,-500.0,0.00017999,2]
[408513390,1773786645956,-283.42,0.00017999,2]
[408513391,1773786645966,-258.804972,0.00017999,2]
[408513392,1773786645976,-500.0,0.00017999,2]
[408513393,1773786645986,-267.02202502,0.00017999,2]
[408513394,1773786645995,-500.0,0.00017999,2]
[408513395,1773786646005,-168.78801943,0.00017999,2]
[408513396,1773786646014,-1621.0,0.00018,5]
[408513397,1773786646024,-1298.0,0.00018,5]
[408513398,1773786646034,-34067.62931697,0.00018,2]
[408513399,1773786646046,-176510.94322816,0.00018,2]
[408513401,1773786793785,500.0,0.00026501,120]
[408513402,1773787459384,5000.0,0.00032877,120]
[408513403,1773787558056,873.2,0.00032877,120]
[408513404,1773787588630,-2054.21,0.00013336,2]
[408513405,1773787588658,-324.56532446,0.00013598,2]
[408513406,1773787591510,-324.56532444,0.00013649,2]
[408513407,1773787591540,-300.0,0.00013698,2]
[408513408,1773787591573,-497.2936,0.00013699,2]
[408513409,1773787591601,-256.29215112,0.00013699,2]
[408513410,1773787594545,-2243.70784888,0.00013699,2]
[408513411,1773787801126,150.0,0.00018031,120]
[408513412,1773787801965,241.28854215,0.00018031,120]
[408513413,1773787831521,-162.28266222,0.00013599,2]
[408513414,1773787831531,-938.096,0.00013699,2]
[408513415,1773787831541,-5598.52261834,0.00013699,2]
[408513416,1773787831551,-500.0,0.00013773,2]
[408513417,1773787831561,-260.0,0.00013797,2]
[408513418,1773787831571,-500.0,0.00013798,2]
[408513419,1773787831580,-500.0,0.00013798,2]
[408513420,1773787831590,-500.0,0.00013798,2]
[408513421,1773787831600,-500.0,0.00013798,2]
[408513422,1773787831610,-500.0,0.00013798,2]
[408513423,1773787831620,-500.0,0.00013798,2]
[408513424,1773787831630,-500.0,0.00013798,2]
[408513425,1773787831640,-500.0,0.00013798,2]